bitfinex/quotes_BTCUSD_20250703
["timestamp","ask_amount","ask_price","bid_price","bid_amount"]
[1751584947731,0.0226185,109770.0,109760.0,1.02263161]
[1751584947928,0.03172795,109770.0,109760.0,1.02263161]
[1751584948132,0.04994694,109770.0,109760.0,1.02263161]
[1751584948348,0.03783732,109770.0,109760.0,1.02263161]
[1751584948555,0.04694694,109770.0,109760.0,1.02263161]
[1751584948767,0.04794694,109770.0,109760.0,1.02263161]
[1751584948989,0.04594694,109770.0,109760.0,1.02263161]
[1751584949196,0.04694694,109770.0,109760.0,1.02363161]
[1751584949649,0.04594752,109770.0,109760.0,1.02263161]
[1751584949858,0.04594743,109770.0,109760.0,0.42495731]
[1751584950069,0.04694743,109770.0,109760.0,0.7449594]
[1751584950279,0.04894743,109770.0,109760.0,0.7459594]
[1751584950700,0.04894743,109770.0,109760.0,0.6727697]
[1751584951127,0.03983773,109770.0,109760.0,0.6727697]
[1751584952416,0.04894752,109770.0,109760.0,0.6727697]
[1751584952634,0.03983773,109770.0,109760.0,0.6727697]
[1751584954123,0.22203687,109770.0,109760.0,0.14422052]
[1751584954351,0.20381855,109770.0,109760.0,0.14422052]
[1751584955027,0.20381855,109770.0,109760.0,0.05278359]
[1751584955248,0.52282064,109770.0,109760.0,0.05278359]
[1751584955466,0.70698064,109770.0,109760.0,0.02098359]
[1751584956555,0.38797855,109770.0,109760.0,0.02098359]
[1751584957429,0.72797855,109770.0,109760.0,0.00388155]
[1751584957635,1.04698064,109770.0,109760.0,0.00388155]
[1751584957841,1.06298064,109770.0,109760.0,0.00388155]
[1751584958048,1.06298064,109770.0,109760.0,0.01240271]
[1751584958466,1.06298064,109770.0,109760.0,0.00388155]
[1751584958881,1.06298064,109770.0,109760.0,0.01240293]
[1751584959087,1.06198064,109770.0,109760.0,0.01140293]
[1751584959222,1.10774064,109770.0,109760.0,0.01240293]
[1751584959424,1.10574064,109770.0,109760.0,0.01140293]
[1751584959622,1.10574064,109770.0,109760.0,0.00288155]
[1751584959986,1.10774064,109770.0,109760.0,0.00388155]
[1751584961910,1.09174064,109770.0,109760.0,0.00388155]
[1751584962337,1.09174064,109770.0,109760.0,0.01240426]
[1751584963964,0.77273855,109770.0,109760.0,0.01240426]
[1751584964173,1.09174064,109770.0,109760.0,0.01240426]
[1751584966315,1.09174064,109770.0,109760.0,0.02945327]
[1751584969052,1.09185196,109770.0,109760.0,0.02945327]
[1751584969254,1.10795196,109770.0,109760.0,0.02945327]
[1751584969855,1.12325196,109770.0,109760.0,0.02945327]
[1751584976443,1.12963176,109770.0,109760.0,0.02945327]
[1751584977122,1.15701976,109770.0,109760.0,0.02945327]
[1751584977906,1.13725139,109770.0,109760.0,0.02945327]
[1751584983666,1.12195139,109770.0,109760.0,0.02945327]
[1751584984444,1.13775139,109770.0,109760.0,0.02945327]
[1751584984882,1.13775641,109770.0,109760.0,0.02945327]
[1751584987877,1.13776309,109770.0,109760.0,0.02945327]
[1751584988645,1.13676309,109770.0,109760.0,0.02845327]
[1751584988809,1.12096309,109770.0,109760.0,0.02845327]
[1751584989310,1.12196309,109770.0,109760.0,0.02945327]
[1751584990463,1.11996309,109770.0,109760.0,0.02845327]
[1751584990683,1.10386309,109770.0,109760.0,0.02845327]
[1751584990882,1.10486309,109770.0,109760.0,0.02945327]
[1751584992186,1.12006309,109770.0,109760.0,0.02945327]
[1751584993754,1.10486309,109770.0,109760.0,0.02945327]
[1751584993957,1.10486326,109770.0,109760.0,0.02945327]
[1751584995269,0.80562954,109770.0,109760.0,0.02945327]
[1751584995672,1.10486326,109770.0,109760.0,0.02945327]
[1751584996701,1.06010333,109770.0,109760.0,0.02950748]
[1751585002562,1.07580333,109770.0,109760.0,0.02950748]
[1751585006490,0.73324161,109770.0,109760.0,0.35241849]
[1751585006667,0.54932161,109770.0,109760.0,0.35241849]
[1751585006870,0.73324161,109770.0,109760.0,0.35241849]
[1751585007277,0.72684987,109770.0,109760.0,0.35241849]
[1751585009875,0.54292987,109770.0,109760.0,0.02098477]
[1751585010104,1.03247171,109770.0,109760.0,0.02953107]
[1751585010316,1.04787171,109770.0,109760.0,0.02953107]
[1751585010526,1.06367171,109770.0,109760.0,0.02953107]
[1751585010739,1.09105971,109770.0,109760.0,0.02953107]
[1751585011350,1.48173036,109770.0,109760.0,0.02953107]
[1751585011569,1.50353045,109770.0,109760.0,0.02953107]
[1751585011769,1.54360475,109770.0,109760.0,0.02953107]
[1751585012380,1.54360475,109770.0,109760.0,0.02953081]
[1751585012381,1.54360322,109770.0,109760.0,0.02953081]
[1751585013281,1.54360322,109770.0,109760.0,0.01242759]
[1751585014143,1.54360322,109770.0,109760.0,0.00388155]
[1751585015509,1.54360075,109770.0,109760.0,0.00388155]
[1751585017523,1.63503768,109770.0,109760.0,0.00388155]
[1751585018348,1.54260075,109770.0,109760.0,0.00288155]
[1751585018480,1.54460075,109770.0,109760.0,0.00288155]
[1751585018689,1.54360075,109770.0,109760.0,0.00188155]
[1751585019110,1.54460075,109770.0,109760.0,0.00288155]
[1751585021986,1.54457922,109770.0,109760.0,0.00288155]
[1751585023630,0.19136123,109740.0,109730.0,0.02988505]
[1751585023843,0.37580123,109740.0,109730.0,0.05549665]
[1751585024051,0.37580123,109740.0,109730.0,0.05554369]
[1751585024459,0.37580123,109740.0,109730.0,0.04700649]
[1751585024670,0.37580123,109740.0,109730.0,0.05554237]
[1751585024874,0.37580123,109740.0,109730.0,0.05654237]
[1751585025112,0.37680123,109740.0,109730.0,0.05654237]
[1751585026244,0.37880123,109740.0,109730.0,0.05754237]
[1751585027789,1.0693721,109740.0,109730.0,0.02765732]
[1751585028000,1.10314614,109740.0,109730.0,0.02765754]
[1751585028215,0.20964234,109710.0,109700.0,0.68318679]
[1751585028496,0.20964234,109710.0,109700.0,0.62036794]
[1751585028730,0.21875703,109710.0,109700.0,0.61133843]
[1751585029002,0.20964284,109710.0,109700.0,0.29206756]
[1751585029200,0.20964284,109710.0,109700.0,0.61133843]
[1751585029404,0.20964284,109710.0,109700.0,0.61233843]
[1751585029526,0.21164284,109710.0,109700.0,0.61233843]
[1751585030158,0.21164284,109710.0,109700.0,0.62145378]
[1751585030373,0.21164284,109710.0,109700.0,0.63041727]
[1751585030924,0.21264284,109710.0,109700.0,0.63041727]
[1751585031354,0.21264284,109710.0,109700.0,0.66181727]
[1751585032394,0.03034406,109710.0,109700.0,0.67093245]
[1751585032632,0.03945875,109710.0,109700.0,0.67093245]
[1751585032815,0.0303439,109710.0,109700.0,0.67113245]
[1751585034568,0.03034323,109710.0,109700.0,0.67113245]
[1751585035166,0.039458,109710.0,109700.0,0.67113245]
[1751585035687,0.02122863,109710.0,109700.0,0.67113245]
[1751585035970,0.01211419,109710.0,109700.0,0.67113245]
[1751585036288,0.02122854,109710.0,109700.0,0.67113245]
[1751585036412,0.03034306,109710.0,109700.0,0.67113245]
[1751585036620,0.02122863,109710.0,109700.0,0.67113245]
[1751585038263,0.03034332,109710.0,109700.0,0.67113245]
[1751585039078,0.03034323,109710.0,109700.0,0.67113245]
[1751585040202,0.03034323,109710.0,109700.0,0.69672488]
[1751585040840,0.039458,109710.0,109700.0,0.69672488]
[1751585041560,0.03034323,109710.0,109700.0,0.69672488]
[1751585041830,0.03034323,109710.0,109700.0,0.67966326]
[1751585042032,0.04857285,109710.0,109700.0,0.37745597]
[1751585042252,0.04857285,109710.0,109700.0,0.69672684]
[1751585042878,0.039458,109710.0,109700.0,0.69672684]
[1751585044037,0.039458,109710.0,109700.0,0.37745597]
[1751585044249,0.039458,109710.0,109700.0,0.69672684]
[1751585044869,0.22175678,109710.0,109700.0,0.69673134]
[1751585045262,0.22175678,109710.0,109700.0,0.02688465]
[1751585045263,0.2035284,109710.0,109700.0,0.02688465]
[1751585045481,0.2035284,109710.0,109700.0,0.66170247]
[1751585045482,0.21264276,109710.0,109700.0,0.66170247]
[1751585045696,0.21264276,109710.0,109700.0,0.6697798]
[1751585045697,0.003,109710.0,109700.0,0.6697798]
[1751585045926,0.003,109710.0,109700.0,1.3527067]
[1751585046141,0.002012,109730.0,109720.0,0.24131216]
[1751585046354,0.002012,109730.0,109720.0,1.32583168]
[1751585046581,0.002012,109730.0,109720.0,1.21898862]
[1751585047233,0.002012,109730.0,109720.0,1.19148081]
[1751585047656,0.002012,109730.0,109720.0,1.18948081]
[1751585048123,0.003012,109730.0,109720.0,1.19148081]
[1751585048956,0.003012,109730.0,109720.0,1.19048081]
[1751585049840,0.003412,109730.0,109720.0,1.19048081]
[1751585051106,0.003412,109730.0,109720.0,1.21822869]
[1751585051320,0.003412,109730.0,109720.0,1.53749956]
[1751585051531,0.003412,109730.0,109720.0,1.61036837]
[1751585051988,0.002412,109730.0,109720.0,1.60836837]
[1751585052214,0.002412,109730.0,109720.0,1.43168856]
[1751585052529,0.003412,109730.0,109720.0,1.178919]
[1751585052971,0.004412,109730.0,109720.0,1.183919]
[1751585053389,0.004412,109730.0,109720.0,1.184919]
[1751585054016,0.004412,109730.0,109720.0,1.183919]
[1751585054229,0.005412,109730.0,109720.0,1.187919]
[1751585057772,0.005412,109730.0,109720.0,1.187839]
[1751585058924,0.005412,109730.0,109720.0,0.91389112]
[1751585058925,0.01452461,109730.0,109720.0,0.91389112]
[1751585059144,0.01452461,109730.0,109720.0,1.12841112]
[1751585059145,0.02363747,109730.0,109720.0,1.12841112]
[1751585059876,0.02363738,109730.0,109720.0,1.12841112]
[1751585060131,0.01452461,109730.0,109720.0,1.12841112]
[1751585060813,0.005412,109730.0,109720.0,1.15951112]
[1751585061489,0.01452453,109730.0,109720.0,1.15951112]
[1751585061738,0.005412,109730.0,109720.0,1.15951112]
[1751585064032,0.01452461,109730.0,109720.0,1.14431112]
[1751585064257,0.01452461,109730.0,109720.0,1.12841112]
[1751585067099,0.005412,109730.0,109720.0,1.12841112]
[1751585067318,0.005412,109730.0,109720.0,1.16041112]
[1751585067536,0.005412,109730.0,109720.0,1.16061112]
[1751585068617,0.005412,109730.0,109720.0,1.3148669]
[1751585072351,0.01452461,109730.0,109720.0,0.51134244]
[1751585072572,0.01452461,109730.0,109720.0,0.9429869]
[1751585072922,0.02363747,109730.0,109720.0,0.9429869]
[1751585073330,0.03275058,109730.0,109720.0,0.9429869]
[1751585073539,0.06455058,109730.0,109720.0,0.7127469]
[1751585073917,0.06455058,109730.0,109720.0,0.8977869]
[1751585074568,0.06455058,109730.0,109720.0,0.74353112]
[1751585075938,0.06455058,109730.0,109720.0,0.42426025]
[1751585076179,0.06455058,109730.0,109720.0,0.74353112]
[1751585078557,0.06455058,109730.0,109720.0,0.73353112]
[1751585080485,0.06455049,109730.0,109720.0,1.02683112]
[1751585080694,0.05543747,109730.0,109720.0,1.02683112]
[1751585080901,0.07366377,109730.0,109720.0,1.02683112]
[1751585082150,0.06455058,109730.0,109720.0,1.02683112]
[1751585082351,0.07366377,109730.0,109720.0,1.02683112]
[1751585083164,0.05543747,109730.0,109720.0,1.02683112]
[1751585083369,0.06455049,109730.0,109720.0,1.02683112]
[1751585084153,0.06455049,109730.0,109720.0,0.84179112]
[1751585084356,0.0736636,109730.0,109720.0,1.02683112]
[1751585085630,0.0716516,109730.0,109720.0,1.02683112]
[1751585085846,0.0735308,109730.0,109720.0,1.02683112]
[1751585086443,0.0735308,109730.0,109720.0,0.73353112]
[1751585087411,0.0735308,109730.0,109720.0,0.73345112]
[1751585090012,0.06441769,109730.0,109720.0,0.73345112]
[1751585090459,0.0735308,109730.0,109720.0,0.73345112]
[1751585091977,0.06441769,109730.0,109720.0,0.73345112]
[1751585093146,0.0735308,109730.0,109720.0,0.73333112]
[1751585094930,0.06441769,109730.0,109720.0,0.73333112]
[1751585095846,0.05530467,109730.0,109720.0,0.73333112]
[1751585096047,0.06441769,109730.0,109720.0,0.73333112]
[1751585096932,0.05530467,109730.0,109720.0,0.73333112]
[1751585097138,0.06441769,109730.0,109720.0,0.73333112]
[1751585097481,0.05530467,109730.0,109720.0,0.73333112]
[1751585099000,0.06441769,109730.0,109720.0,0.73333112]
[1751585101053,0.05530467,109730.0,109720.0,0.73333112]
[1751585101279,0.04619181,109730.0,109720.0,0.73333112]
[1751585101489,0.05530467,109730.0,109720.0,0.73333112]
[1751585102121,0.05530467,109730.0,109720.0,0.80599753]
[1751585103599,0.06441769,109730.0,109720.0,0.80599753]
[1751585103883,0.05530467,109730.0,109720.0,0.80599753]
[1751585107791,0.05530458,109730.0,109720.0,0.80599753]
[1751585108602,0.04619181,109730.0,109720.0,0.80599753]
[1751585108813,0.0553045,109730.0,109720.0,0.80599753]
[1751585109842,0.04619181,109730.0,109720.0,0.80599753]
[1751585110254,0.0052792,109730.0,109720.0,0.80599753]
[1751585110455,0.0052792,109730.0,109720.0,0.83819753]
[1751585110665,0.0052792,109730.0,109720.0,1.17819753]
[1751585111576,0.0052792,109730.0,109720.0,1.19636414]
[1751585112586,0.0052792,109730.0,109720.0,1.10553112]
[1751585113601,0.0052792,109730.0,109720.0,1.1333077]
[1751585113812,0.0052792,109730.0,109720.0,0.7933077]
[1751585114441,0.0052792,109730.0,109720.0,1.1333077]
[1751585115769,0.0052792,109730.0,109720.0,1.20619322]
[1751585115921,0.0052792,109730.0,109720.0,1.49949322]
[1751585117420,0.0052792,109730.0,109720.0,1.15949322]
[1751585119101,0.0052792,109730.0,109720.0,1.49949322]
[1751585121896,0.0052792,109730.0,109720.0,2.07776847]
[1751585122741,0.0052792,109730.0,109720.0,2.00488295]
[1751585125626,0.0052792,109730.0,109720.0,2.09571597]
[1751585126233,0.0020662,109740.0,109730.0,0.22414523]
[1751585126458,0.0020662,109740.0,109730.0,1.46440378]
[1751585127044,0.0020662,109740.0,109730.0,1.17110378]
[1751585127246,0.0020662,109740.0,109730.0,1.42864828]
[1751585127453,0.0020662,109740.0,109730.0,1.12946624]
[1751585127667,0.0030662,109740.0,109730.0,1.22429926]
[1751585127948,0.0040662,109740.0,109730.0,1.22929926]
[1751585128151,0.0030662,109740.0,109730.0,1.22529926]
[1751585128576,0.0040662,109740.0,109730.0,1.23029926]
[1751585129393,0.0030662,109740.0,109730.0,1.22529926]
[1751585129785,0.0040662,109740.0,109730.0,1.2700085]
[1751585130552,0.0040662,109740.0,109730.0,1.17917548]
[1751585130689,0.0040662,109740.0,109730.0,1.47247548]
[1751585132412,0.0040662,109740.0,109730.0,1.5633085]
[1751585132614,0.0040662,109740.0,109730.0,1.5321085]
[1751585132813,0.0040662,109740.0,109730.0,1.44127548]
[1751585135533,0.0040662,109740.0,109730.0,1.44147548]
[1751585139149,0.0040662,109740.0,109730.0,1.5323085]
[1751585140186,0.0040662,109740.0,109730.0,1.5771485]
[1751585143624,0.0040662,109740.0,109730.0,1.5953985]
[1751585143962,0.0040662,109740.0,109730.0,1.5771485]
[1751585146358,0.0029013,109740.0,109730.0,1.5771485]
[1751585149773,0.0029013,109740.0,109730.0,1.53732908]
[1751585154727,0.0181013,109740.0,109730.0,1.53732908]
[1751585162554,0.0181013,109740.0,109730.0,1.52278823]
[1751585163422,0.0181013,109740.0,109730.0,1.53732908]
[1751585163626,0.0181013,109740.0,109730.0,1.55557908]
[1751585163833,0.0181013,109740.0,109730.0,1.53732908]
[1751585165256,0.0336013,109740.0,109730.0,1.53732908]
[1751585166090,0.0336013,109740.0,109730.0,1.52278823]
[1751585166271,0.0336013,109740.0,109730.0,0.93907518]
[1751585166482,0.0336013,109740.0,109730.0,1.53732908]
[1751585167440,0.0336013,109740.0,109730.0,0.99450128]
[1751585167616,0.0336013,109740.0,109730.0,1.22342128]
[1751585167828,0.0336013,109740.0,109730.0,1.00904213]
[1751585168215,0.0336013,109740.0,109730.0,0.93883518]
[1751585168410,0.0336013,109740.0,109730.0,1.23796213]
[1751585168617,0.0336013,109740.0,109730.0,1.14712911]
[1751585169406,0.0336013,109740.0,109730.0,0.66388216]
[1751585169627,0.0336013,109740.0,109730.0,1.14712911]
[1751585170336,0.0336013,109740.0,109730.0,1.22005338]
[1751585172080,0.0336013,109740.0,109730.0,0.92675338]
[1751585175256,0.0336013,109740.0,109730.0,0.62762643]
[1751585175431,0.0336013,109740.0,109730.0,0.92675338]
[1751585177940,0.0336013,109740.0,109730.0,0.62762643]
[1751585178173,0.0336013,109740.0,109730.0,0.92675338]
[1751585195459,0.0336013,109740.0,109730.0,0.85382911]
[1751585198333,0.0336013,109740.0,109730.0,0.94466213]
[1751585213568,0.0336013,109740.0,109730.0,1.23796213]
[1751585216991,0.0029013,109740.0,109730.0,1.53708908]
[1751585218175,0.0029013,109740.0,109730.0,2.20851603]
[1751585218384,0.0029013,109740.0,109730.0,1.90938908]
[1751585218650,0.0029013,109740.0,109730.0,1.81855606]
[1751585219020,0.0029013,109740.0,109730.0,1.84593706]
[1751585219228,0.0029013,109740.0,109730.0,1.93707779]
[1751585220616,0.0029013,109740.0,109730.0,1.84593706]
[1751585220826,0.0016565,109750.0,109740.0,0.20958528]
[1751585221028,0.0016565,109750.0,109740.0,1.17453188]
[1751585222021,0.0016565,109750.0,109740.0,1.17461764]
[1751585222315,0.0026565,109750.0,109740.0,1.17761764]
[1751585222518,0.0026565,109750.0,109740.0,1.47091764]
[1751585223282,0.0036565,109750.0,109740.0,1.47391764]
[1751585224093,0.0036565,109750.0,109740.0,1.38278187]
[1751585229394,0.0036565,109750.0,109740.0,1.41016187]
[1751585234709,0.0192565,109750.0,109740.0,1.41016187]
[1751585240852,0.0343565,109750.0,109740.0,1.41016187]
[1751585241508,0.0343565,109750.0,109740.0,1.41012187]
[1751585243100,0.0343565,109750.0,109740.0,0.81186797]
[1751585243297,0.0343565,109750.0,109740.0,1.20213069]
[1751585243533,0.0343565,109750.0,109740.0,1.08361492]
[1751585244460,0.0343565,109750.0,109740.0,0.60040797]
[1751585244677,0.34259448,109750.0,109740.0,0.90213194]
[1751585244906,0.53393793,109750.0,109740.0,1.01329194]
[1751585245092,0.55216074,109750.0,109740.0,0.78448797]
[1751585245308,0.54304971,109750.0,109740.0,0.77537619]
[1751585246009,0.5339386,109750.0,109740.0,0.77537619]
[1751585246183,0.5339386,109750.0,109740.0,0.48207619]
[1751585246389,0.5339386,109750.0,109740.0,0.3071083]
[1751585246539,0.5339386,109750.0,109740.0,0.4911883]
[1751585250485,0.5339386,109750.0,109740.0,0.50030033]
[1751585251477,0.23481165,109750.0,109740.0,0.50050033]
[1751585251677,0.5343386,109750.0,109740.0,0.50961227]
[1751585252083,0.23521165,109750.0,109740.0,0.50961227]
[1751585252291,0.5343386,109750.0,109740.0,0.50961227]
[1751585253820,0.5343386,109750.0,109740.0,0.3073083]
[1751585254017,0.5343386,109750.0,109740.0,0.50050033]
[1751585254221,0.05297931,109750.0,109740.0,0.50961219]
[1751585254422,0.5343386,109750.0,109740.0,0.50961219]
[1751585254696,0.35210626,109750.0,109740.0,0.50961219]
[1751585254970,0.5343386,109750.0,109740.0,0.50961219]
[1751585257162,0.06209026,109750.0,109740.0,0.50961219]
[1751585257355,0.36121721,109750.0,109740.0,0.50961219]
[1751585257559,0.06209026,109750.0,109740.0,0.50961219]
[1751585261539,0.36121721,109750.0,109740.0,0.50961219]
[1751585264107,0.06209026,109750.0,109740.0,0.50961219]
[1751585265508,0.55256108,109750.0,109740.0,0.50961219]
[1751585265702,0.56167269,109750.0,109740.0,0.50961219]
[1751585274114,0.56167269,109750.0,109740.0,0.50050033]
[1751585274278,0.55256166,109750.0,109740.0,0.50050033]
[1751585275092,0.55256166,109750.0,109740.0,0.50961219]
[1751585287516,0.55256166,109750.0,109740.0,0.48227619]
[1751585287731,0.54345038,109750.0,109740.0,0.48223619]
[1751585289162,0.54345038,109750.0,109740.0,0.4913483]
[1751585296376,0.54345038,109750.0,109740.0,0.50046033]
[1751585301542,0.54345038,109750.0,109740.0,0.4913483]
[1751585303279,0.24432343,109750.0,109740.0,0.4913483]
[1751585303508,0.54345038,109750.0,109740.0,0.4913483]
[1751585304600,0.54345038,109750.0,109740.0,0.50046033]
[1751585306024,0.24432343,109750.0,109740.0,0.50046033]
[1751585306442,0.54345038,109750.0,109740.0,0.50046033]
[1751585308177,0.24432343,109750.0,109740.0,0.4913483]
[1751585308519,0.54345038,109750.0,109740.0,0.4913483]
[1751585308997,0.53433893,109750.0,109740.0,0.4913483]
[1751585309785,0.23521198,109750.0,109740.0,0.4913483]
[1751585309965,0.53433893,109750.0,109740.0,0.4913483]
[1751585312595,0.23521198,109750.0,109740.0,0.79047525]
[1751585315231,0.23521198,109750.0,109740.0,0.473124]
[1751585315435,0.5252274,109750.0,109740.0,0.473124]
[1751585317973,0.5252274,109750.0,109740.0,0.48223628]
[1751585319050,0.22610045,109750.0,109740.0,0.48223628]
[1751585319253,0.5252274,109750.0,109740.0,0.48223628]
[1751585328664,0.22610045,109750.0,109740.0,0.48223628]
[1751585332570,0.22610045,109750.0,109740.0,0.78136323]
[1751585336613,0.22610045,109750.0,109740.0,0.48223628]
[1751585337551,0.22610045,109750.0,109740.0,0.78136323]
[1751585338624,0.22610045,109750.0,109740.0,0.48223628]
[1751585338768,0.22610045,109750.0,109740.0,0.78136323]
[1751585340533,0.22610045,109750.0,109740.0,0.79047542]
[1751585341401,0.22610045,109750.0,109740.0,0.49134847]
[1751585342397,0.51611579,109750.0,109740.0,0.473124]
[1751585342834,0.51611579,109750.0,109740.0,0.48223628]
[1751585343224,0.51611579,109750.0,109740.0,0.49134847]
[1751585343388,0.21698884,109750.0,109740.0,0.49134847]
[1751585343592,0.21698884,109750.0,109740.0,0.50046058]
[1751585346018,0.21698884,109750.0,109740.0,0.79958753]
[1751585346493,0.21698884,109750.0,109740.0,0.50046058]
[1751585346706,0.21698884,109750.0,109740.0,0.79958753]
[1751585351379,0.21698884,109750.0,109740.0,0.50046058]
[1751585363081,0.21698884,109750.0,109740.0,0.50957261]
[1751585365894,0.0347565,109750.0,109740.0,0.50957261]
[1751585366093,0.0040565,109750.0,109740.0,0.80869906]
[1751585366603,0.0040565,109750.0,109740.0,1.21260998]
[1751585368092,0.0040565,109750.0,109740.0,1.56715083]
[1751585368297,0.0040565,109750.0,109740.0,1.59453383]
[1751585370336,0.0040565,109750.0,109740.0,1.88783383]
[1751585372519,0.0040565,109750.0,109740.0,1.70379383]
[1751585372736,0.0040565,109750.0,109740.0,1.93247383]
[1751585384989,0.0040565,109750.0,109740.0,1.33421993]
[1751585385228,0.0040565,109750.0,109740.0,1.93247383]
[1751585386694,0.0040565,109750.0,109740.0,1.91677383]
[1751585387315,0.0040565,109750.0,109740.0,1.90057383]
[1751585391980,0.0195565,109750.0,109740.0,1.90057383]
[1751585392191,0.0195565,109750.0,109740.0,1.60144688]
[1751585392666,0.0195565,109750.0,109740.0,1.90057383]
[1751585393427,0.0195565,109750.0,109740.0,1.60144688]
[1751585393937,0.0195565,109750.0,109740.0,1.90057383]
[1751585395229,0.0351565,109750.0,109740.0,1.90057383]
[1751585398348,0.0351565,109750.0,109740.0,1.82768986]
[1751585401502,0.0195565,109750.0,109740.0,1.82768986]
[1751585403135,0.0195565,109750.0,109740.0,1.80030686]
[1751585406013,0.0346565,109750.0,109740.0,1.80030686]
[1751585435093,0.0346565,109750.0,109740.0,1.27249991]
[1751585435094,0.04376745,109750.0,109740.0,1.27249991]
[1751585435305,0.04376745,109750.0,109740.0,1.52930803]
[1751585438092,0.04376737,109750.0,109740.0,1.52930803]
[1751585438901,0.0346565,109750.0,109740.0,1.52930803]
[1751585439555,0.04376737,109750.0,109740.0,1.82843498]
[1751585443141,0.0346565,109750.0,109740.0,1.82843498]
[1751585455560,0.0195565,109750.0,109740.0,1.82843498]
[1751585455801,0.0040565,109750.0,109740.0,1.82843498]
[1751585456336,0.0359565,109750.0,109740.0,1.82843498]
[1751585457910,0.0040565,109750.0,109740.0,1.82843498]
[1751585459073,0.0200565,109750.0,109740.0,1.82843498]
[1751585460868,0.0360565,109750.0,109740.0,1.82843498]
[1751585462169,0.0360565,109750.0,109740.0,1.87311498]
[1751585463754,0.0360565,109750.0,109740.0,1.86311498]
[1751585467602,0.0040565,109750.0,109740.0,2.08927381]
[1751585467819,0.0040565,109750.0,109740.0,2.18040958]
[1751585468221,1e-08,109750.0,109740.0,2.18040958]
[1751585468417,1e-08,109750.0,109740.0,2.21160958]
[1751585468647,1e-08,109750.0,109740.0,2.23598858]
[1751585468847,0.0016565,109760.0,109750.0,0.56410703]
[1751585469129,0.0016565,109760.0,109750.0,1.52871657]
[1751585470440,0.00157095,109760.0,109750.0,1.43755786]
[1751585470816,0.00257095,109760.0,109750.0,1.44255786]
[1751585471022,0.00357095,109760.0,109750.0,1.74085786]
[1751585471231,0.01957095,109760.0,109750.0,1.74085786]
[1751585473466,0.01957095,109760.0,109750.0,1.81369843]
[1751585473675,0.00357095,109760.0,109750.0,1.77355786]
[1751585473887,0.00357095,109760.0,109750.0,1.74085786]
[1751585476392,0.00357095,109760.0,109750.0,1.81367413]
[1751585478617,0.00357095,109760.0,109750.0,1.62991413]
[1751585479850,0.00357095,109760.0,109750.0,1.85831413]
[1751585482719,0.03477095,109760.0,109750.0,1.26006023]
[1751585482888,0.03477095,109760.0,109750.0,1.55918718]
[1751585483881,0.03477095,109760.0,109750.0,1.85831413]
[1751585487591,0.03477095,109760.0,109750.0,1.62991413]
[1751585488833,0.03477095,109760.0,109750.0,1.85827413]
[1751585495519,0.03477095,109760.0,109750.0,1.78545786]
[1751585497420,0.03477095,109760.0,109750.0,1.87661657]
[1751585509405,0.03477095,109760.0,109750.0,1.64825657]
[1751585509603,0.03477095,109760.0,109750.0,1.30662587]
[1751585509869,0.04388099,109760.0,109750.0,1.51459411]
[1751585511224,0.04388099,109760.0,109750.0,1.21546716]
[1751585511361,0.04388099,109760.0,109750.0,1.51459411]
[1751585511745,0.03477095,109760.0,109750.0,1.51459411]
[1751585512561,0.04388099,109760.0,109750.0,1.51459411]
[1751585512767,0.03477095,109760.0,109750.0,1.51459411]
[1751585513827,0.03477095,109760.0,109750.0,1.21546716]
[1751585513985,0.03477095,109760.0,109750.0,1.51459411]
[1751585518305,0.03477095,109760.0,109750.0,1.22129411]
[1751585518715,0.03477095,109760.0,109750.0,0.92216716]
[1751585518878,0.03477095,109760.0,109750.0,1.22129411]
[1751585521376,0.03473095,109760.0,109750.0,1.22129411]
[1751585549111,0.04384107,109760.0,109750.0,1.22129411]
[1751585549336,0.04384099,109760.0,109750.0,1.22129411]
[1751585550196,0.04384099,109760.0,109750.0,0.92216716]
[1751585550403,0.04384099,109760.0,109750.0,1.22129411]
[1751585551459,0.04384107,109760.0,109750.0,1.22129411]
[1751585551663,0.03473095,109760.0,109750.0,1.22129411]
[1751585552285,0.04384099,109760.0,109750.0,1.22129411]
[1751585557568,0.36118851,109760.0,109750.0,0.72394631]
[1751585557817,0.55251487,109760.0,109750.0,0.55843528]
[1751585558444,0.55151487,109760.0,109750.0,0.55343528]
[1751585558661,0.55055487,109760.0,109750.0,0.55754648]
[1751585558870,0.55055487,109760.0,109750.0,0.56054648]
[1751585559290,0.55055487,109760.0,109750.0,0.55143528]
[1751585559449,0.24231788,109760.0,109750.0,0.55143528]
[1751585559652,0.24331788,109760.0,109750.0,0.56354648]
[1751585560067,0.24331788,109760.0,109750.0,0.56054648]
[1751585560710,0.24231788,109760.0,109750.0,0.55754648]
[1751585561065,0.24331788,109760.0,109750.0,0.55954648]
[1751585561952,0.24331788,109760.0,109750.0,0.56154648]
[1751585568432,0.24331788,109760.0,109750.0,0.57065759]
[1751585569062,0.06110214,109760.0,109750.0,0.87889557]
[1751585569278,0.0519916,109760.0,109750.0,0.87889557]
[1751585571026,0.05199152,109760.0,109750.0,0.87889557]
[1751585571781,0.06110205,109760.0,109750.0,0.87889557]
[1751585578443,0.06110205,109760.0,109750.0,0.57976862]
[1751585578661,0.06110205,109760.0,109750.0,0.87889557]
[1751585580150,0.05199152,109760.0,109750.0,0.87889557]
[1751585580359,0.06110197,109760.0,109750.0,0.87889557]
[1751585580662,0.07021259,109760.0,109750.0,0.87889557]
[1751585580992,0.06110197,109760.0,109750.0,0.87889557]
[1751585582881,0.07021259,109760.0,109750.0,0.87889557]
[1751585583629,0.06110197,109760.0,109750.0,0.87889557]
[1751585584617,0.0702125,109760.0,109750.0,0.87889557]
[1751585585014,0.06110197,109760.0,109750.0,0.57976862]
[1751585585221,0.0702125,109760.0,109750.0,0.87889557]
[1751585587653,0.07932312,109760.0,109750.0,0.87889557]
[1751585590192,0.0702125,109760.0,109750.0,0.87889557]
[1751585590610,0.06110197,109760.0,109750.0,0.87889557]
[1751585593055,0.06110197,109760.0,109750.0,0.57976862]
[1751585593258,0.06110197,109760.0,109750.0,0.87889557]
[1751585593259,0.07021259,109760.0,109750.0,0.87889557]
[1751585594794,0.06110197,109760.0,109750.0,0.87889557]
[1751585598593,0.36933954,109760.0,109750.0,0.57976862]
[1751585598797,0.36022892,109760.0,109750.0,0.57976862]
[1751585598999,0.54244483,109760.0,109750.0,0.55243528]
[1751585599207,0.36022909,109760.0,109750.0,0.56154631]
[1751585600048,0.06110214,109760.0,109750.0,0.56154631]
[1751585601060,0.06110214,109760.0,109750.0,0.86067326]
[1751585602962,0.07021284,109760.0,109750.0,0.86067326]
[1751585603174,0.55155553,109760.0,109750.0,0.37794631]
[1751585603345,0.55155553,109760.0,109750.0,0.56150631]
[1751585604489,0.56066631,109760.0,109750.0,0.55239528]
[1751585604709,0.55155611,109760.0,109750.0,0.56150648]
[1751585604928,0.54244574,109760.0,109750.0,0.4703408]
[1751585605156,0.53333512,109760.0,109750.0,0.47945225]
[1751585605802,0.53333512,109760.0,109750.0,0.48856361]
[1751585606020,0.52422442,109760.0,109750.0,0.48856361]
[1751585607797,0.52422442,109760.0,109750.0,0.29589225]
[1751585607982,0.51511364,109760.0,109750.0,0.5341639]